fUST/lending_fUST_20250228
["ID","MTS","AMOUNT","RATE_DAILY","PERIOD"]
[354835153,1740729091806,-948.86,0.00326027,120]
[354835154,1740729091955,-500.0,0.00326027,120]
[354835155,1740729091977,-500.0,0.00326027,120]
[354835156,1740729091987,-1043.41,0.00326027,120]
[354835157,1740729091997,-500.0,0.00326027,120]
[354835158,1740729092007,-1408.38,0.00326027,120]
[354835159,1740729092017,-871.78,0.00326027,120]
[354835160,1740729092027,-379.46159352,0.00326027,120]
[354835161,1740729092040,-500.0,0.00326027,120]
[354835162,1740729092050,-851.03,0.00326027,120]
[354835163,1740729092060,-526.84,0.00326027,120]
[354835164,1740729092070,-694.99,0.00326027,120]
[354835165,1740729092080,-223.06067188,0.00326027,120]
[354835166,1740729092090,-500.0,0.00326027,120]
[354835167,1740729092099,-539.3,0.00326027,120]
[354835168,1740729092109,-938.58,0.00326027,120]
[354835169,1740729092119,-500.0,0.00326027,120]
[354835170,1740729092128,-500.0,0.00326027,120]
[354835171,1740729092138,-708.44,0.00326027,120]
[354835172,1740729092148,-520.73,0.00326027,120]
[354835173,1740729092159,-500.0,0.00326027,120]
[354835174,1740729092168,-676.19,0.00326027,120]
[354835175,1740729092178,-1222.28,0.00326027,15]
[354835176,1740729092188,-500.0,0.00326027,120]
[354835177,1740729092198,-508.02,0.00326027,120]
[354835178,1740729092208,-500.0,0.00326027,120]
[354835179,1740729092223,-677.8,0.00326027,120]
[354835180,1740729092233,-604.99,0.00326027,120]
[354835181,1740729092243,-530.51,0.00326027,120]
[354835182,1740729092254,-745.29,0.00326027,120]
[354835183,1740729092263,-523.1,0.00326027,120]
[354835184,1740729092273,-500.0,0.00326027,120]
[354835185,1740729092286,-500.0,0.00326027,120]
[354835186,1740729092296,-649.09,0.00326027,120]
[354835187,1740729092306,-748.69,0.00326027,120]
[354835188,1740729092316,-874.05,0.00326027,120]
[354835189,1740729092327,-500.0,0.00326027,120]
[354835190,1740729092337,-224.23,0.00326027,120]
[354835191,1740729092347,-593.90378553,0.00326027,120]
[354835192,1740729092357,-1007.44,0.00326027,120]
[354835193,1740729092367,-500.0,0.00326027,120]
[354835194,1740729092376,-500.0,0.00326027,120]
[354835195,1740729092387,-753.37,0.00326027,120]
[354835196,1740729092396,-500.0,0.00326027,120]
[354835197,1740729092406,-530.93,0.00326027,120]
[354835198,1740729092416,-772.32,0.00326027,120]
[354835199,1740729092427,-11613.08,0.00326027,7]
[354835200,1740729092436,-532.21,0.00326027,120]
[354835201,1740729092447,-500.0,0.00326027,120]
[354835202,1740729092457,-1556.94,0.00326027,120]
[354835203,1740729092467,-500.0,0.00326027,120]
[354835204,1740729092476,-500.59,0.00326027,120]
[354835205,1740729092486,-500.0,0.00326027,120]
[354835206,1740729092496,-590.72,0.00326027,120]
[354835207,1740729092505,-500.0,0.00326027,120]
[354835208,1740729092516,-4393.23,0.00326027,120]
[354835209,1740729092526,-632.06,0.00326027,120]
[354835210,1740729092540,-500.0,0.00326027,120]
[354835211,1740729092549,-1833.79,0.00326027,120]
[354835212,1740729092559,-500.0,0.00326027,120]
[354835213,1740729092569,-2892.98,0.00326027,120]
[354835214,1740729092579,-1008.73,0.00326027,120]
[354835215,1740729092589,-500.0,0.00326027,120]
[354835216,1740729092599,-793.95,0.00326027,120]
[354835217,1740729092609,-6516.68,0.00326027,120]
[354835218,1740729092619,-500.0,0.00326027,120]
[354835219,1740729092629,-1565.72,0.00326027,120]
[354835220,1740729092638,-403.64875155,0.00326027,120]
[354835221,1740729092648,-1139.58,0.00326027,120]
[354835222,1740729092659,-4010.18,0.00326027,120]
[354835223,1740729092669,-672.53,0.00326027,120]
[354835224,1740729092679,-1915.4,0.00326027,120]
[354835225,1740729092689,-1057.46,0.00326027,120]
[354835226,1740729092699,-500.0,0.00326027,120]
[354835227,1740729092709,-588.21,0.00326027,120]
[354835228,1740729092719,-584.47,0.00326027,120]
[354835229,1740729092731,-606.2,0.00326027,120]
[354835230,1740729092741,-1547.61,0.00326027,120]
[354835231,1740729092751,-2877.85,0.00326027,120]
[354835232,1740729092761,-661.27,0.00326027,120]
[354835233,1740729092773,-812.15,0.00326027,120]
[354835234,1740729092783,-500.0,0.00326027,120]
[354835235,1740729092794,-1765.26,0.00326027,120]
[354835236,1740729092804,-899.89,0.00326027,120]
[354835237,1740729092814,-525.54,0.00326027,120]
[354835238,1740729092826,-500.0,0.00326027,120]
[354835239,1740729092836,-612.01,0.00326027,120]
[354835240,1740729092845,-500.0,0.00326027,120]
[354835241,1740729092855,-1314.56,0.00326027,120]
[354835242,1740729092865,-6198.23,0.00326027,120]
[354835243,1740729092874,-48801.26,0.00326027,7]
[354835244,1740729092883,-500.0,0.00326027,120]
[354835245,1740729092893,-500.0,0.00326027,120]
[354835246,1740729092903,-532.68,0.00326027,120]
[354835247,1740729092913,-2002.68,0.00326027,120]
[354835248,1740729092923,-3085.87,0.00326027,120]
[354835249,1740729092933,-1055.5,0.00326027,120]
[354835250,1740729092942,-502.55,0.00326027,120]
[354835251,1740729092951,-500.0,0.00326027,120]
[354835252,1740729092961,-749.41,0.00326027,120]
[354835253,1740729092971,-1132.97,0.00326027,120]
[354835254,1740729092980,-500.0,0.00326027,120]
[354835255,1740729092990,-23601.55,0.00326027,120]
[354835256,1740729093000,-507.38,0.00326027,120]
[354835257,1740729093010,-536.87,0.00326027,120]
[354835258,1740729093020,-746.73,0.00326027,120]
[354835259,1740729093030,-1089.7,0.00326027,120]
[354835260,1740729093041,-2092.1,0.00326027,120]
[354835261,1740729093052,-500.0,0.00326027,120]
[354835262,1740729093063,-500.0,0.00326027,120]
[354835263,1740729093073,-1310.9,0.00326027,120]
[354835264,1740729093083,-152.45,0.003391,87]
[354835265,1740729093093,-152.45,0.003391,87]
[354835266,1740729093103,-152.45,0.003391,87]
[354835267,1740729093113,-152.45,0.003391,87]
[354835268,1740729093123,-152.45,0.003391,87]
[354835269,1740729093133,-152.45,0.003391,87]
[354835270,1740729093143,-152.45,0.003391,87]
[354835271,1740729093153,-152.45,0.003391,87]
[354835272,1740729093164,-152.45,0.003391,87]
[354835273,1740729093174,-152.45,0.003391,87]
[354835274,1740729093185,-152.45,0.003391,87]
[354835275,1740729093195,-152.45,0.003391,87]
[354835276,1740729093206,-152.45,0.003391,87]
[354835277,1740729093216,-152.45,0.003391,87]
[354835278,1740729093226,-20000.0,0.0035,120]
[354835279,1740729093236,-20000.0,0.0035,120]
[354835280,1740729093246,-1000.0,0.0035,120]
[354835281,1740729093255,-528.95407512,0.00350684,120]
[354835282,1740729093265,-500.0,0.00350684,120]
[354835283,1740729093275,-493.1,0.00350684,120]
[354835284,1740729093285,-500.0,0.00350684,120]
[354835285,1740729093296,-500.0,0.00350684,120]
[354835286,1740729093306,-500.0,0.00350684,120]
[354835287,1740729093315,-501.39,0.00350684,120]
[354835288,1740729093325,-500.0,0.00350684,120]
[354835289,1740729093334,-500.0,0.00350684,120]
[354835290,1740729093343,-500.0,0.00350684,120]
[354835291,1740729093353,-531.78,0.00350684,120]
[354835292,1740729093364,-500.0,0.00350684,120]
[354835293,1740729093374,-500.0,0.00350684,120]
[354835294,1740729093384,-1899.72,0.00350684,120]
[354835295,1740729093394,-864.26,0.00350684,120]
[354835296,1740729093404,-807.93,0.00350684,120]
[354835297,1740729093414,-948.86,0.00350684,120]
[354835298,1740729093424,-500.0,0.00350684,120]
[354835299,1740729093433,-500.0,0.00350684,120]
[354835300,1740729093443,-1043.41,0.00350684,120]
[354835301,1740729093453,-500.0,0.00350684,120]
[354835302,1740729093463,-1408.38,0.00350684,120]
[354835303,1740729093474,-871.78,0.00350684,120]
[354835304,1740729093485,-500.0,0.00350684,120]
[354835305,1740729093496,-851.03,0.00350684,120]
[354835306,1740729093506,-526.84,0.00350684,120]
[354835307,1740729093517,-694.99,0.00350684,120]
[354835308,1740729093527,-500.0,0.00350684,120]
[354835309,1740729093542,-539.3,0.00350684,120]
[354835310,1740729093553,-938.58,0.00350684,120]
[354835311,1740729093563,-500.0,0.00350684,120]
[354835312,1740729093574,-500.0,0.00350684,120]
[354835313,1740729093583,-708.44,0.00350684,120]
[354835314,1740729093593,-520.73,0.00350684,120]
[354835315,1740729093604,-500.0,0.00350684,120]
[354835316,1740729093614,-676.19,0.00350684,120]
[354835317,1740729093624,-1222.28,0.00350684,15]
[354835318,1740729093634,-500.0,0.00350684,120]
[354835319,1740729093644,-508.02,0.00350684,120]
[354835320,1740729093654,-500.0,0.00350684,120]
[354835321,1740729093665,-677.8,0.00350684,120]
[354835322,1740729093676,-604.99,0.00350684,120]
[354835323,1740729093686,-530.51,0.00350684,120]
[354835324,1740729093696,-745.29,0.00350684,120]
[354835325,1740729093706,-523.1,0.00350684,120]
[354835326,1740729093716,-500.0,0.00350684,120]
[354835327,1740729093730,-500.0,0.00350684,120]
[354835328,1740729093741,-748.69,0.00350684,120]
[354835329,1740729093751,-874.05,0.00350684,120]
[354835330,1740729093761,-500.0,0.00350684,120]
[354835331,1740729093772,-1007.44,0.00350684,120]
[354835332,1740729093782,-500.0,0.00350684,120]
[354835333,1740729093796,-500.0,0.00350684,120]
[354835334,1740729093806,-753.37,0.00350684,120]
[354835335,1740729093816,-500.0,0.00350684,120]
[354835336,1740729093827,-530.93,0.00350684,120]
[354835337,1740729093836,-772.32,0.00350684,120]
[354835338,1740729093846,-11613.08,0.00350684,7]
[354835339,1740729093856,-532.21,0.00350684,120]
[354835340,1740729093865,-500.0,0.00350684,120]
[354835341,1740729093875,-1556.94,0.00350684,120]
[354835342,1740729093885,-500.0,0.00350684,120]
[354835343,1740729093895,-500.59,0.00350684,120]
[354835344,1740729093904,-500.0,0.00350684,120]
[354835345,1740729093914,-590.72,0.00350684,120]
[354835346,1740729093924,-500.0,0.00350684,120]
[354835347,1740729093934,-4393.23,0.00350684,120]
[354835348,1740729093943,-632.06,0.00350684,120]
[354835349,1740729093953,-500.0,0.00350684,120]
[354835350,1740729093963,-1833.79,0.00350684,120]
[354835351,1740729093972,-500.0,0.00350684,120]
[354835352,1740729093982,-2892.98,0.00350684,120]
[354835353,1740729093992,-1008.73,0.00350684,120]
[354835354,1740729094002,-500.0,0.00350684,120]
[354835355,1740729094012,-793.95,0.00350684,120]
[354835356,1740729094022,-6516.68,0.00350684,120]
[354835357,1740729094031,-500.0,0.00350684,120]
[354835358,1740729094043,-1565.72,0.00350684,120]
[354835359,1740729094058,-1139.58,0.00350684,120]
[354835360,1740729094069,-4010.18,0.00350684,120]
[354835361,1740729094079,-672.53,0.00350684,120]
[354835362,1740729094089,-1915.4,0.00350684,120]
[354835363,1740729094099,-1057.46,0.00350684,120]
[354835364,1740729094109,-500.0,0.00350684,120]
[354835365,1740729094119,-588.21,0.00350684,120]
[354835366,1740729094129,-584.47,0.00350684,120]
[354835367,1740729094139,-606.2,0.00350684,120]
[354835368,1740729094149,-1547.61,0.00350684,120]
[354835369,1740729094160,-2877.85,0.00350684,120]
[354835370,1740729094169,-661.27,0.00350684,120]
[354835371,1740729094179,-812.15,0.00350684,120]
[354835372,1740729094189,-500.0,0.00350684,120]
[354835373,1740729094199,-1765.26,0.00350684,120]
[354835374,1740729094213,-899.89,0.00350684,120]
[354835375,1740729094223,-525.54,0.00350684,120]
[354835376,1740729094233,-200.37,0.00350684,120]
[354835377,1740729094243,-612.01,0.00350684,120]
[354835378,1740729094253,-500.0,0.00350684,120]
[354835379,1740729094263,-1314.56,0.00350684,120]
[354835380,1740729094272,-6198.23,0.00350684,120]
[354835381,1740729094282,-48801.26,0.00350684,7]
[354835382,1740729094294,-500.0,0.00350684,120]
[354835383,1740729094304,-171.38141794,0.00350684,120]
[354835384,1740729094314,-532.68,0.00350684,120]
[354835385,1740729094325,-2002.68,0.00350684,120]
[354835386,1740729094335,-3085.87,0.00350684,120]
[354835387,1740729094344,-1055.5,0.00350684,120]
[354835388,1740729094354,-502.55,0.00350684,120]
[354835389,1740729094363,-500.0,0.00350684,120]
[354835390,1740729094372,-749.41,0.00350684,120]
[354835391,1740729094382,-1132.97,0.00350684,120]
[354835392,1740729094392,-500.0,0.00350684,120]
[354835393,1740729094401,-23601.55,0.00350684,120]
[354835394,1740729094410,-507.38,0.00350684,120]
[354835395,1740729094420,-536.87,0.00350684,120]
[354835396,1740729094430,-746.73,0.00350684,120]
[354835397,1740729094440,-1089.7,0.00350684,120]
[354835398,1740729094450,-2092.1,0.00350684,120]
[354835399,1740729094460,-500.0,0.00350684,120]
[354835400,1740729094470,-500.0,0.00350684,120]
[354835401,1740729094479,-1310.9,0.00350684,120]
[354835402,1740729094490,-1522.64736504,0.00371685,28]
[354835403,1740729094500,-3000.0,0.00375,120]
[354835404,1740729094510,-613.93116392,0.00375342,120]
[354835405,1740729094519,-493.1,0.00375342,120]
[354835406,1740729094529,-500.0,0.00375342,120]
[354835407,1740729094542,-500.0,0.00375342,120]
[354835408,1740729094552,-500.0,0.00375342,120]
[354835409,1740729094563,-501.39,0.00375342,120]
[354835410,1740729094572,-500.0,0.00375342,120]
[354835411,1740729094582,-500.0,0.00375342,120]
[354835412,1740729094592,-500.0,0.00375342,120]
[354835413,1740729094602,-531.78,0.00375342,120]
[354835414,1740729094611,-500.0,0.00375342,120]
[354835415,1740729094621,-500.0,0.00375342,120]
[354835416,1740729094630,-1899.72,0.00375342,120]
[354835417,1740729094640,-864.26,0.00375342,120]
[354835418,1740729094650,-807.93,0.00375342,120]
[354835419,1740729094659,-948.86,0.00375342,120]
[354835420,1740729094669,-500.0,0.00375342,120]
[354835421,1740729094678,-500.0,0.00375342,120]
[354835422,1740729094688,-1043.41,0.00375342,120]
[354835423,1740729094697,-500.0,0.00375342,120]
[354835424,1740729094707,-1408.38,0.00375342,120]
[354835425,1740729094721,-871.78,0.00375342,120]
[354835426,1740729094730,-500.0,0.00375342,120]
[354835427,1740729094740,-851.03,0.00375342,120]
[354835428,1740729094750,-526.84,0.00375342,120]
[354835429,1740729094759,-694.99,0.00375342,120]
[354835430,1740729094769,-500.0,0.00375342,120]
[354835431,1740729094778,-539.3,0.00375342,120]
[354835432,1740729094789,-938.58,0.00375342,120]
[354835433,1740729094800,-500.0,0.00375342,120]
[354835434,1740729094809,-500.0,0.00375342,120]
[354835435,1740729094820,-708.44,0.00375342,120]
[354835436,1740729094830,-520.73,0.00375342,120]
[354835437,1740729094840,-500.0,0.00375342,120]
[354835438,1740729094850,-676.19,0.00375342,120]
[354835439,1740729094860,-1222.28,0.00375342,15]
[354835440,1740729094870,-500.0,0.00375342,120]
[354835441,1740729094880,-508.02,0.00375342,120]
[354835442,1740729094889,-500.0,0.00375342,120]
[354835443,1740729094899,-677.8,0.00375342,120]
[354835444,1740729094908,-604.99,0.00375342,120]
[354835445,1740729094918,-530.51,0.00375342,120]
[354835446,1740729094928,-745.29,0.00375342,120]
[354835447,1740729094937,-523.1,0.00375342,120]
[354835448,1740729094947,-500.0,0.00375342,120]
[354835449,1740729094956,-500.0,0.00375342,120]
[354835450,1740729094966,-748.69,0.00375342,120]
[354835451,1740729094976,-874.05,0.00375342,120]
[354835452,1740729094986,-500.0,0.00375342,120]
[354835453,1740729094996,-1007.44,0.00375342,120]
[354835454,1740729095007,-500.0,0.00375342,120]
[354835455,1740729095016,-500.0,0.00375342,120]
[354835456,1740729095026,-753.37,0.00375342,120]
[354835457,1740729095036,-500.0,0.00375342,120]
[354835458,1740729095046,-530.93,0.00375342,120]
[354835459,1740729095057,-772.32,0.00375342,120]
[354835460,1740729095067,-11613.08,0.00375342,7]
[354835461,1740729095076,-532.21,0.00375342,120]
[354835462,1740729095085,-500.0,0.00375342,120]
[354835463,1740729095095,-1556.94,0.00375342,120]
[354835464,1740729095105,-500.0,0.00375342,120]
[354835465,1740729095114,-500.59,0.00375342,120]
[354835466,1740729095124,-500.0,0.00375342,120]
[354835467,1740729095134,-590.72,0.00375342,120]
[354835468,1740729095143,-500.0,0.00375342,120]
[354835469,1740729095153,-4393.23,0.00375342,120]
[354835470,1740729095162,-632.06,0.00375342,120]
[354835471,1740729095172,-500.0,0.00375342,120]
[354835472,1740729095181,-1833.79,0.00375342,120]
[354835473,1740729095191,-500.0,0.00375342,120]
[354835474,1740729095202,-2892.98,0.00375342,120]
[354835475,1740729095211,-1008.73,0.00375342,120]
[354835476,1740729095222,-500.0,0.00375342,120]
[354835477,1740729095232,-793.95,0.00375342,120]
[354835478,1740729095242,-6516.68,0.00375342,120]
[354835479,1740729095252,-500.0,0.00375342,120]
[354835480,1740729095263,-1565.72,0.00375342,120]
[354835481,1740729095272,-1139.58,0.00375342,120]
[354835482,1740729095283,-4010.18,0.00375342,120]
[354835483,1740729095297,-672.53,0.00375342,120]
[354835484,1740729095308,-1915.4,0.00375342,120]
[354835485,1740729095317,-1057.46,0.00375342,120]
[354835486,1740729095470,-500.0,0.00375342,120]
[354835487,1740729095480,-588.21,0.00375342,120]
[354835488,1740729095490,-584.47,0.00375342,120]
[354835489,1740729095500,-606.2,0.00375342,120]
[354835490,1740729095510,-1547.61,0.00375342,120]
[354835491,1740729095520,-2877.85,0.00375342,120]
[354835492,1740729095530,-661.27,0.00375342,120]
[354835493,1740729095543,-812.15,0.00375342,120]
[354835494,1740729095552,-500.0,0.00375342,120]
[354835495,1740729095562,-1765.26,0.00375342,120]
[354835496,1740729095572,-899.89,0.00375342,120]
[354835497,1740729095582,-525.54,0.00375342,120]
[354835498,1740729095591,-612.01,0.00375342,120]
[354835499,1740729095601,-500.0,0.00375342,120]
[354835500,1740729095611,-1314.56,0.00375342,120]
[354835501,1740729095621,-6198.23,0.00375342,120]
[354835502,1740729095631,-48801.26,0.00375342,7]
[354835503,1740729095644,-500.0,0.00375342,120]
[354835504,1740729095654,-532.68,0.00375342,120]
[354835505,1740729095665,-2002.68,0.00375342,120]
[354835506,1740729095677,-3085.87,0.00375342,120]
[354835507,1740729095688,-1055.5,0.00375342,120]
[354835508,1740729095698,-502.55,0.00375342,120]
[354835509,1740729095709,-500.0,0.00375342,120]
[354835510,1740729095722,-749.41,0.00375342,120]
[354835511,1740729095732,-1132.97,0.00375342,120]
[354835512,1740729095741,-500.0,0.00375342,120]
[354835513,1740729095751,-23601.55,0.00375342,120]
[354835514,1740729095764,-507.38,0.00375342,120]
[354835515,1740729095773,-536.87,0.00375342,120]
[354835516,1740729095783,-746.73,0.00375342,120]
[354835517,1740729095795,-1089.7,0.00375342,120]
[354835518,1740729095806,-2092.1,0.00375342,120]
[354835519,1740729095816,-500.0,0.00375342,120]
[354835520,1740729095825,-500.0,0.00375342,120]
[354835521,1740729095834,-1310.9,0.00375342,120]
[354835522,1740729095844,-15939.84,0.0038,120]
[354835523,1740729095853,-824.53,0.0038,120]
[354835524,1740729095862,-151.85,0.0039,60]
[354835525,1740729095871,-725.4,0.0039,60]
[354835526,1740729095881,-20000.0,0.004,120]
[354835527,1740729095891,-200.0,0.004,120]
[354835528,1740729095900,-200.0,0.004,30]
[354835529,1740729095909,-100000.0,0.004,120]
[354835530,1740729095918,-20000.0,0.004,120]
[354835531,1740729095928,-1000.0,0.004,120]
[354835532,1740729095937,-500.0,0.004,120]
[354835533,1740729095946,-493.1,0.004,120]
[354835534,1740729095956,-500.0,0.004,120]
[354835535,1740729095966,-500.0,0.004,120]
[354835536,1740729095975,-296.22177375,0.004,120]
[354835537,1740729095985,-501.39,0.004,120]
[354835538,1740729095995,-468.68203237,0.004,120]
[354835539,1740729096004,-500.0,0.004,120]
[354835540,1740729096014,-500.0,0.004,120]
[354835541,1740729096024,-531.78,0.004,120]
[354835542,1740729096034,-500.0,0.004,120]
[354835543,1740729096045,-500.0,0.004,120]
[354835544,1740729096055,-1899.72,0.004,120]
[354835545,1740729096064,-864.26,0.004,120]
[354835546,1740729096075,-807.93,0.004,120]
[354835547,1740729096084,-948.86,0.004,120]
[354835548,1740729096094,-560.95148129,0.004,120]
[354835549,1740729096104,-500.0,0.004,120]
[354835550,1740729096114,-1043.41,0.004,120]
[354835551,1740729096124,-500.0,0.004,120]
[354835552,1740729096133,-1408.38,0.004,120]
[354835553,1740729096142,-871.78,0.004,120]
[354835554,1740729096152,-318.87042,0.004,120]
[354835555,1740729096162,-851.03,0.004,120]
[354835556,1740729096173,-526.84,0.004,120]
[354835557,1740729096183,-694.99,0.004,120]
[354835558,1740729096192,-500.0,0.004,120]
[354835559,1740729096203,-539.3,0.004,120]
[354835560,1740729096213,-938.58,0.004,120]
[354835561,1740729096222,-500.0,0.004,120]
[354835562,1740729096232,-500.0,0.004,120]
[354835563,1740729096242,-708.44,0.004,120]
[354835564,1740729096251,-520.73,0.004,120]
[354835565,1740729096262,-500.0,0.004,120]
[354835566,1740729096271,-676.19,0.004,120]
[354835567,1740729096280,-1222.28,0.004,15]
[354835568,1740729096292,-500.0,0.004,120]
[354835569,1740729096302,-508.02,0.004,120]
[354835570,1740729096313,-500.0,0.004,120]
[354835571,1740729096322,-677.8,0.004,120]
[354835572,1740729096332,-604.99,0.004,120]
[354835573,1740729096342,-530.51,0.004,120]
[354835574,1740729096352,-745.29,0.004,120]
[354835575,1740729096362,-523.1,0.004,120]
[354835576,1740729096372,-500.0,0.004,120]
[354835577,1740729096382,-500.0,0.004,120]
[354835578,1740729096392,-748.69,0.004,120]
[354835579,1740729096402,-874.05,0.004,120]
[354835580,1740729096413,-500.0,0.004,120]
[354835581,1740729096423,-1007.44,0.004,120]
[354835582,1740729096432,-500.0,0.004,120]
[354835583,1740729096442,-500.0,0.004,120]
[354835584,1740729096451,-753.37,0.004,120]
[354835585,1740729096461,-500.0,0.004,120]
[354835586,1740729096472,-530.93,0.004,120]
[354835587,1740729096482,-772.32,0.004,120]
[354835588,1740729096492,-11613.08,0.004,7]
[354835589,1740729096501,-532.21,0.004,120]
[354835590,1740729096512,-500.0,0.004,120]
[354835591,1740729096521,-1556.94,0.004,120]
[354835592,1740729096531,-500.0,0.004,120]
[354835593,1740729096544,-500.59,0.004,120]
[354835594,1740729096554,-500.0,0.004,120]
[354835595,1740729096564,-590.72,0.004,120]
[354835596,1740729096574,-265.95918649,0.004,120]
[354835597,1740729096584,-4393.23,0.004,120]
[354835598,1740729096594,-632.06,0.004,120]
[354835599,1740729096604,-500.0,0.004,120]
[354835600,1740729096613,-1833.79,0.004,120]
[354835601,1740729096622,-500.0,0.004,120]
[354835602,1740729096632,-2892.98,0.004,120]
[354835603,1740729096642,-1008.73,0.004,120]
[354835604,1740729096652,-500.0,0.004,120]
[354835605,1740729096662,-793.95,0.004,120]
[354835606,1740729096672,-6516.68,0.004,120]
[354835607,1740729096683,-500.0,0.004,120]
[354835608,1740729096694,-1565.72,0.004,120]
[354835609,1740729096704,-1139.58,0.004,120]
[354835610,1740729096719,-472.11280887,0.004,120]
[354835611,1740729096730,-455.89452612,0.004,120]
[354835612,1740729096740,-500.0,0.004,120]
[354835613,1740729096750,-428.93210842,0.004,120]
[354835614,1740729096762,-500.0,0.004,31]
[354835615,1740729096771,-496.05835944,0.004,120]
[354835616,1740729096781,-491.09319175,0.004,120]
[354835617,1740729096795,-500.0,0.004,31]
[354835618,1740729096805,-520.25440267,0.004,31]
[354835619,1740729096815,-4010.18,0.004,120]
[354835620,1740729096825,-213.23310067,0.004,120]
[354835621,1740729096834,-183.72798532,0.004,120]
[354835622,1740729096845,-672.53,0.004,120]
[354835623,1740729096854,-1915.4,0.004,120]
[354835624,1740729096866,-1057.46,0.004,120]
[354835625,1740729096876,-606.24198149,0.004,120]
[354835626,1740729096886,-588.21,0.004,120]
[354835627,1740729096895,-584.47,0.004,120]
[354835628,1740729096905,-606.2,0.004,120]
[354835629,1740729096915,-1547.61,0.004,120]
[354835630,1740729096924,-2877.85,0.004,120]
[354835631,1740729096934,-661.27,0.004,120]
[354835632,1740729096943,-812.15,0.004,120]
[354835633,1740729096953,-500.0,0.004,120]
[354835634,1740729096963,-1765.26,0.004,120]
[354835635,1740729096973,-899.89,0.004,120]
[354835636,1740729096982,-525.54,0.004,120]
[354835637,1740729096992,-612.01,0.004,120]
[354835638,1740729097002,-500.0,0.004,120]
[354835639,1740729097012,-1314.56,0.004,120]
[354835640,1740729097021,-6198.23,0.004,120]
[354835641,1740729097031,-48801.26,0.004,7]
[354835642,1740729097045,-500.0,0.004,120]
[354835643,1740729097055,-532.68,0.004,120]
[354835644,1740729097066,-2002.68,0.004,120]
[354835645,1740729097076,-3085.87,0.004,120]
[354835646,1740729097087,-1055.5,0.004,120]
[354835647,1740729097097,-502.55,0.004,120]
[354835648,1740729097107,-500.0,0.004,120]
[354835649,1740729097119,-749.41,0.004,120]
[354835650,1740729097129,-1132.97,0.004,120]
[354835651,1740729097140,-500.0,0.004,120]
[354835652,1740729097150,-23601.55,0.004,120]